[Event "Titled Tuesday Blitz May 23 Early 2023"]
[White "Zaitsev, Alexander"]
[Black "Bashkansky, Ethan"]
[WhiteFideId "4164490"]
[BlackFideId "2071533"]
[WhiteElo "2373"]
[BlackElo "2314"]
[Result "0-1"]
[Round "08"]
[TimeControl "180+2"]
[Date "2023.05.23"]
[WhiteClock "0:00:00"]
[BlackClock "0:00:15"]

1. e4 {[%clk 0:02:38]}  c6 {[%clk 0:03:00]} 2. d4 {[%clk 0:02:37]}  d5 {[%clk 0:03:00]} 3. Nc3 {[%clk 0:02:36]}  dxe4 {[%clk 0:03:01]} 4. Bc4 {[%clk 0:02:36]}  Nf6 {[%clk 0:02:59]} 5. f3 {[%clk 0:02:36]}  e3 {[%clk 0:02:43]} 6. Bxe3 {[%clk 0:02:32]}  Nbd7 {[%clk 0:02:43]} 7. Qe2 {[%clk 0:02:10]}  Nb6 {[%clk 0:02:39]} 8. Bb3 {[%clk 0:02:06]}  Nbd5 {[%clk 0:02:31]} 9. Bd2 {[%clk 0:01:59]}  Nxc3 {[%clk 0:02:27]} 10. Bxc3 {[%clk 0:01:59]}  Bf5 {[%clk 0:02:22]} 11. O-O-O {[%clk 0:01:50]}  e6 {[%clk 0:02:22]} 12. g4 {[%clk 0:01:50]}  Bg6 {[%clk 0:02:19]} 13. f4 {[%clk 0:01:19]}  Be7 {[%clk 0:02:12]} 14. Nf3 {[%clk 0:00:57]}  Nxg4 {[%clk 0:02:06]} 15. h4 {[%clk 0:00:47]}  Qc7 {[%clk 0:01:53]} 16. h5 {[%clk 0:00:37]}  Bf5 {[%clk 0:01:44]} 17. Ne5 {[%clk 0:00:33]}  Nxe5 {[%clk 0:01:39]} 18. dxe5 {[%clk 0:00:30]}  Rd8 {[%clk 0:01:30]} 19. Rdg1 {[%clk 0:00:29]}  Rg8 {[%clk 0:01:23]} 20. Rg3 {[%clk 0:00:29]}  Kd7 {[%clk 0:01:17]} 21. Rhg1 {[%clk 0:00:21]}  g6 {[%clk 0:01:13]} 22. hxg6 {[%clk 0:00:18]}  Rxg6 {[%clk 0:01:11]} 23. Rxg6 {[%clk 0:00:17]}  fxg6 {[%clk 0:00:59]} 24. Rh1 {[%clk 0:00:15]}  h5 {[%clk 0:00:57]} 25. a3 {[%clk 0:00:13]}  Kc8 {[%clk 0:00:52]} 26. Qf2 {[%clk 0:00:14]}  Kb8 {[%clk 0:00:46]} 27. a4 {[%clk 0:00:14]}  Ka8 {[%clk 0:00:45]} 28. Bc4 {[%clk 0:00:14]}  Qb6 {[%clk 0:00:40]} 29. Qe2 {[%clk 0:00:08]}  Bc5 {[%clk 0:00:38]} 30. Kb1 {[%clk 0:00:07]}  Bd4 {[%clk 0:00:33]} 31. a5 {[%clk 0:00:07]}  Qc5 {[%clk 0:00:32]} 32. Bd2 {[%clk 0:00:03]}  a6 {[%clk 0:00:23]} 33. Rf1 {[%clk 0:00:04]}  Bg4 {[%clk 0:00:22]} 34. Qd3 {[%clk 0:00:02]}  Bf5 {[%clk 0:00:22]} 35. Qe2 {[%clk 0:00:03]}  Qe7 {[%clk 0:00:20]} 36. Re1 {[%clk 0:00:02]}  Ba7 {[%clk 0:00:16]} 37. Bb3 {[%clk 0:00:01]}  Qd7 {[%clk 0:00:16]} 38. Bc3 {[%clk 0:00:02]}  Qc7 {[%clk 0:00:14]} 39. Bc4 {[%clk 0:00:02]}  Qd7 {[%clk 0:00:15]} 40. Rf1 {[%clk 0:00:03]}  Qe7 {[%clk 0:00:15]} 41. Re1 {[%clk 0:00:00]}  Qh4 {[%clk 0:00:15]} 0-1


[Site "https://www.chess.com"]

[Event "Titled Tuesday Blitz May 23 Early 2023"]
[White "Mrudul Dehankar"]
[Black "ChawitAp"]
[WhiteFideId "25096990"]
[WhiteElo "2139"]
[BlackElo "2279"]
[Result "1-0"]
[Round "08"]
[TimeControl "180+2"]
[Date "2023.05.23"]
[WhiteClock "0:00:02"]
[BlackClock "0:00:21"]

1. e4 {[%clk 0:02:34]}  c6 {[%clk 0:02:57]} 2. d4 {[%clk 0:02:30]}  g6 {[%clk 0:02:57]} 3. Nf3 {[%clk 0:02:27]}  Bg7 {[%clk 0:02:57]} 4. Nc3 {[%clk 0:02:18]}  d5 {[%clk 0:02:57]} 5. e5 {[%clk 0:02:17]}  Bg4 {[%clk 0:02:57]} 6. Bf4 {[%clk 0:02:16]}  e6 {[%clk 0:02:57]} 7. h3 {[%clk 0:02:04]}  Bxf3 {[%clk 0:02:57]} 8. Qxf3 {[%clk 0:02:05]}  Nd7 {[%clk 0:02:57]} 9. O-O-O {[%clk 0:02:02]}  Ne7 {[%clk 0:02:56]} 10. g4 {[%clk 0:02:03]}  b5 {[%clk 0:02:55]} 11. h4 {[%clk 0:02:00]}  Qa5 {[%clk 0:02:55]} 12. Kb1 {[%clk 0:02:00]}  Nb6 {[%clk 0:02:49]} 13. h5 {[%clk 0:01:51]}  Nc4 {[%clk 0:02:40]} 14. Bxc4 {[%clk 0:01:24]}  bxc4 {[%clk 0:02:37]} 15. Bg5 {[%clk 0:01:23]}  Rb8 {[%clk 0:02:26]} 16. Ka1 {[%clk 0:01:16]}  gxh5 {[%clk 0:02:14]} 17. Rxh5 {[%clk 0:00:55]}  Qb6 {[%clk 0:01:58]} 18. Na4 {[%clk 0:00:47]}  Qb4 {[%clk 0:01:55]} 19. b3 {[%clk 0:00:42]}  Ng6 {[%clk 0:01:36]} 20. Bd2 {[%clk 0:00:35]}  Qa3 {[%clk 0:01:19]} 21. Rdh1 {[%clk 0:00:28]}  c5 {[%clk 0:00:38]} 22. Rxh7 {[%clk 0:00:20]}  cxd4 {[%clk 0:00:37]} 23. Rxg7 {[%clk 0:00:11]}  Rxh1+ {[%clk 0:00:34]} 24. Qxh1 {[%clk 0:00:12]}  cxb3 {[%clk 0:00:28]} 25. cxb3 {[%clk 0:00:07]}  Rxb3 {[%clk 0:00:28]} 26. Qc1 {[%clk 0:00:04]}  Qxa4 {[%clk 0:00:20]} 27. Qc8+ {[%clk 0:00:03]}  Ke7 {[%clk 0:00:20]} 28. Qc7+ {[%clk 0:00:02]}  Kf8 {[%clk 0:00:21]} 29. Qxf7# {[%clk 0:00:02]} 1-0


[Site "https://www.chess.com"]

[Event "Titled Tuesday Blitz May 23 Early 2023"]
[White "Rosh Jain"]
[Black "Toktomushev, Teimur"]
[WhiteFideId "25789465"]
[BlackFideId "14176726"]
[WhiteElo "2233"]
[BlackElo "2116"]
[Result "1-0"]
[Round "08"]
[TimeControl "180+2"]
[Date "2023.05.23"]
[WhiteClock "0:00:35"]
[BlackClock "0:00:02"]

1. e4 {[%clk 0:02:56]}  c5 {[%clk 0:02:52]} 2. Nc3 {[%clk 0:02:56]}  e6 {[%clk 0:02:52]} 3. Nge2 {[%clk 0:02:54]}  a6 {[%clk 0:02:49]} 4. g3 {[%clk 0:02:52]}  b5 {[%clk 0:02:49]} 5. Bg2 {[%clk 0:02:52]}  Bb7 {[%clk 0:02:50]} 6. O-O {[%clk 0:02:51]}  Nf6 {[%clk 0:02:50]} 7. d4 {[%clk 0:02:49]}  cxd4 {[%clk 0:02:50]} 8. Nxd4 {[%clk 0:02:49]}  b4 {[%clk 0:02:50]} 9. Na4 {[%clk 0:02:49]}  Bxe4 {[%clk 0:02:51]} 10. Bxe4 {[%clk 0:02:11]}  Nxe4 {[%clk 0:02:48]} 11. Be3 {[%clk 0:02:09]}  Be7 {[%clk 0:02:11]} 12. Qg4 {[%clk 0:01:51]}  Ng5 {[%clk 0:01:28]} 13. h4 {[%clk 0:01:46]}  f5 {[%clk 0:00:53]} 14. Qh5+ {[%clk 0:01:41]}  Nf7 {[%clk 0:00:52]} 15. Rad1 {[%clk 0:01:24]}  Qc7 {[%clk 0:00:38]} 16. Qf3 {[%clk 0:01:16]}  Nc6 {[%clk 0:00:30]} 17. Nb6 {[%clk 0:01:01]}  Rd8 {[%clk 0:00:11]} 18. Nb3 {[%clk 0:00:57]}  O-O {[%clk 0:00:08]} 19. Qe2 {[%clk 0:00:54]}  d5 {[%clk 0:00:05]} 20. Na4 {[%clk 0:00:52]}  e5 {[%clk 0:00:04]} 21. Bb6 {[%clk 0:00:51]}  Qb7 {[%clk 0:00:02]} 22. Bxd8 {[%clk 0:00:52]}  Rxd8 {[%clk 0:00:03]} 23. Nac5 {[%clk 0:00:51]}  Qb5 {[%clk 0:00:02]} 24. Qxb5 {[%clk 0:00:50]}  axb5 {[%clk 0:00:03]} 25. Ne6 {[%clk 0:00:50]}  Rd7 {[%clk 0:00:03]} 26. Nbc5 {[%clk 0:00:50]}  Rd6 {[%clk 0:00:03]} 27. Nc7 {[%clk 0:00:48]}  d4 {[%clk 0:00:02]} 28. Nb3 {[%clk 0:00:41]}  e4 {[%clk 0:00:01]} 29. Nxb5 {[%clk 0:00:40]}  Rd5 {[%clk 0:00:01]} 30. N5xd4 {[%clk 0:00:40]}  Nxd4 {[%clk 0:00:02]} 31. Rxd4 {[%clk 0:00:39]}  Rxd4 {[%clk 0:00:02]} 32. Nxd4 {[%clk 0:00:40]}  Bf6 {[%clk 0:00:03]} 33. Nxf5 {[%clk 0:00:39]}  Bxb2 {[%clk 0:00:04]} 34. Rb1 {[%clk 0:00:38]}  Bc3 {[%clk 0:00:04]} 35. Ne7+ {[%clk 0:00:38]}  Kf8 {[%clk 0:00:04]} 36. Nd5 {[%clk 0:00:38]}  Bd2 {[%clk 0:00:02]} 37. Nxb4 {[%clk 0:00:38]}  Ne5 {[%clk 0:00:03]} 38. a4 {[%clk 0:00:37]}  Nc4 {[%clk 0:00:01]} 39. Nc6 {[%clk 0:00:35]}  e3 {[%clk 0:00:01]} 40. fxe3 {[%clk 0:00:35]}  Bxe3+ {[%clk 0:00:01]} 41. Kg2 {[%clk 0:00:36]}  Kf7 {[%clk 0:00:02]} 42. a5 {[%clk 0:00:35]}  Ke6 {[%clk 0:00:01]} 43. a6 {[%clk 0:00:35]}  Kd6 {[%clk 0:00:02]} 44. a7 {[%clk 0:00:35]}  Nb6 {[%clk 0:00:02]} 45. Rxb6 {[%clk 0:00:35]} 1-0


[Site "https://www.chess.com"]

[Event "Titled Tuesday Blitz May 23 Early 2023"]
[White "Yurasova, Daria"]
[Black "Jiganchine, Roman"]
[WhiteFideId "34146919"]
[BlackFideId "2603667"]
[WhiteElo "2109"]
[BlackElo "2301"]
[Result "1-0"]
[Round "08"]
[TimeControl "180+2"]
[Date "2023.05.23"]
[WhiteClock "0:00:13"]
[BlackClock "0:00:03"]

1. d4 {[%clk 0:03:00]}  d5 {[%clk 0:02:59]} 2. Nf3 {[%clk 0:03:00]}  Nf6 {[%clk 0:02:59]} 3. Bf4 {[%clk 0:03:00]}  c5 {[%clk 0:02:58]} 4. e3 {[%clk 0:03:00]}  e6 {[%clk 0:02:57]} 5. Nbd2 {[%clk 0:03:00]}  Nc6 {[%clk 0:02:58]} 6. c3 {[%clk 0:03:01]}  Bd6 {[%clk 0:02:58]} 7. Bg3 {[%clk 0:03:01]}  O-O {[%clk 0:02:57]} 8. Bd3 {[%clk 0:03:01]}  Qe7 {[%clk 0:02:57]} 9. O-O {[%clk 0:03:01]}  e5 {[%clk 0:02:54]} 10. dxe5 {[%clk 0:03:01]}  Nxe5 {[%clk 0:02:54]} 11. Nxe5 {[%clk 0:03:02]}  Bxe5 {[%clk 0:02:54]} 12. Bxe5 {[%clk 0:03:03]}  Qxe5 {[%clk 0:02:54]} 13. Nf3 {[%clk 0:03:04]}  Qh5 {[%clk 0:02:50]} 14. Be2 {[%clk 0:03:04]}  Bd7 {[%clk 0:02:35]} 15. Qc2 {[%clk 0:03:02]}  Bc6 {[%clk 0:02:33]} 16. Rad1 {[%clk 0:03:01]}  Rfe8 {[%clk 0:02:27]} 17. Nd4 {[%clk 0:02:55]}  Qg6 {[%clk 0:02:22]} 18. Qxg6 {[%clk 0:02:54]}  hxg6 {[%clk 0:02:21]} 19. Nxc6 {[%clk 0:02:51]}  bxc6 {[%clk 0:02:22]} 20. Bf3 {[%clk 0:02:45]}  c4 {[%clk 0:02:15]} 21. b3 {[%clk 0:02:33]}  cxb3 {[%clk 0:02:09]} 22. axb3 {[%clk 0:02:34]}  a5 {[%clk 0:02:06]} 23. c4 {[%clk 0:02:31]}  Reb8 {[%clk 0:01:46]} 24. cxd5 {[%clk 0:02:15]}  cxd5 {[%clk 0:01:46]} 25. Rd3 {[%clk 0:02:16]}  Rb5 {[%clk 0:01:42]} 26. Ra1 {[%clk 0:02:08]}  Rab8 {[%clk 0:01:34]} 27. h4 {[%clk 0:02:08]}  Rxb3 {[%clk 0:00:51]} 28. Rxb3 {[%clk 0:02:08]}  Rxb3 {[%clk 0:00:52]} 29. Rxa5 {[%clk 0:02:08]}  Rb1+ {[%clk 0:00:49]} 30. Kh2 {[%clk 0:02:08]}  Rb2 {[%clk 0:00:42]} 31. Kg3 {[%clk 0:02:01]}  Ne4+ {[%clk 0:00:37]} 32. Bxe4 {[%clk 0:02:01]}  dxe4 {[%clk 0:00:38]} 33. Ra4 {[%clk 0:02:00]}  f5 {[%clk 0:00:32]} 34. Ra5 {[%clk 0:01:55]}  Kh7 {[%clk 0:00:29]} 35. h5 {[%clk 0:01:53]}  Kh6 {[%clk 0:00:26]} 36. hxg6 {[%clk 0:01:34]}  Kxg6 {[%clk 0:00:25]} 37. f4 {[%clk 0:01:34]}  exf3 {[%clk 0:00:23]} 38. gxf3 {[%clk 0:01:34]}  Rb4 {[%clk 0:00:23]} 39. Ra6+ {[%clk 0:01:30]}  Kf7 {[%clk 0:00:23]} 40. Ra7+ {[%clk 0:01:20]}  Kf6 {[%clk 0:00:23]} 41. Ra6+ {[%clk 0:01:19]}  Kf7 {[%clk 0:00:23]} 42. Ra1 {[%clk 0:01:18]}  Kf6 {[%clk 0:00:22]} 43. Re1 {[%clk 0:01:17]}  Ra4 {[%clk 0:00:21]} 44. Rb1 {[%clk 0:01:16]}  Rc4 {[%clk 0:00:21]} 45. Rb6+ {[%clk 0:01:09]}  Kf7 {[%clk 0:00:21]} 46. f4 {[%clk 0:01:09]}  Re4 {[%clk 0:00:20]} 47. Kf3 {[%clk 0:01:09]}  g6 {[%clk 0:00:20]} 48. Rb3 {[%clk 0:01:09]}  Kf6 {[%clk 0:00:21]} 49. Kg3 {[%clk 0:01:09]}  Kf7 {[%clk 0:00:21]} 50. Kh4 {[%clk 0:01:09]}  Kf6 {[%clk 0:00:15]} 51. Rb6+ {[%clk 0:01:07]}  Kf7 {[%clk 0:00:15]} 52. Kg5 {[%clk 0:01:01]}  Rxe3 {[%clk 0:00:15]} 53. Rf6+ {[%clk 0:00:51]}  Ke7 {[%clk 0:00:13]} 54. Rxg6 {[%clk 0:00:40]}  Rf3 {[%clk 0:00:10]} 55. Ra6 {[%clk 0:00:34]}  Rc3 {[%clk 0:00:06]} 56. Kxf5 {[%clk 0:00:32]}  Rc5+ {[%clk 0:00:07]} 57. Kg6 {[%clk 0:00:32]}  Rc1 {[%clk 0:00:07]} 58. Ra7+ {[%clk 0:00:31]}  Ke6 {[%clk 0:00:07]} 59. f5+ {[%clk 0:00:32]}  Ke5 {[%clk 0:00:07]} 60. Re7+ {[%clk 0:00:32]}  Kd6 {[%clk 0:00:07]} 61. Re2 {[%clk 0:00:31]}  Rg1+ {[%clk 0:00:07]} 62. Kf7 {[%clk 0:00:31]}  Rf1 {[%clk 0:00:08]} 63. f6 {[%clk 0:00:32]}  Rf3 {[%clk 0:00:08]} 64. Kg7 {[%clk 0:00:31]}  Kd7 {[%clk 0:00:08]} 65. f7 {[%clk 0:00:30]}  Rg3+ {[%clk 0:00:08]} 66. Kf8 {[%clk 0:00:31]}  Rf3 {[%clk 0:00:08]} 67. Ra2 {[%clk 0:00:19]}  Rg3 {[%clk 0:00:07]} 68. Ra7+ {[%clk 0:00:15]}  Ke6 {[%clk 0:00:07]} 69. Ke8 {[%clk 0:00:14]}  Rb3 {[%clk 0:00:06]} 70. Ra6+ {[%clk 0:00:13]}  Kf5 {[%clk 0:00:03]} 71. f8=Q+ {[%clk 0:00:13]} 1-0


[Site "https://www.chess.com"]

[Event "Titled Tuesday Blitz May 23 Early 2023"]
[White "Khamdamova, Afruza"]
[Black "Dishman, Stephen"]
[WhiteFideId "14210444"]
[BlackFideId "403024"]
[WhiteElo "2312"]
[BlackElo "2204"]
[Result "0-1"]
[Round "08"]
[TimeControl "180+2"]
[Date "2023.05.23"]
[WhiteClock "0:00:00"]
[BlackClock "0:00:17"]

1. e4 {[%clk 0:03:00]}  d6 {[%clk 0:02:59]} 2. d4 {[%clk 0:03:01]}  Nf6 {[%clk 0:03:00]} 3. Nc3 {[%clk 0:03:01]}  e5 {[%clk 0:03:00]} 4. Nf3 {[%clk 0:02:59]}  Nbd7 {[%clk 0:03:00]} 5. Bc4 {[%clk 0:02:57]}  Be7 {[%clk 0:03:00]} 6. a4 {[%clk 0:02:56]}  O-O {[%clk 0:03:00]} 7. O-O {[%clk 0:02:56]}  c6 {[%clk 0:03:00]} 8. Ba2 {[%clk 0:02:56]}  exd4 {[%clk 0:02:55]} 9. Nxd4 {[%clk 0:02:56]}  Ne5 {[%clk 0:02:55]} 10. Bf4 {[%clk 0:02:55]}  Ng6 {[%clk 0:02:55]} 11. Bg3 {[%clk 0:02:54]}  Re8 {[%clk 0:02:53]} 12. Re1 {[%clk 0:02:54]}  Bf8 {[%clk 0:02:51]} 13. Qd2 {[%clk 0:02:46]}  Qa5 {[%clk 0:02:47]} 14. Rad1 {[%clk 0:02:44]}  Bd7 {[%clk 0:02:45]} 15. f3 {[%clk 0:02:25]}  h6 {[%clk 0:02:38]} 16. Kh1 {[%clk 0:02:23]}  Nh5 {[%clk 0:02:34]} 17. Bf2 {[%clk 0:02:22]}  Qd8 {[%clk 0:02:30]} 18. Nf5 {[%clk 0:02:19]}  Bxf5 {[%clk 0:02:24]} 19. exf5 {[%clk 0:02:19]}  Ne5 {[%clk 0:02:19]} 20. Bd4 {[%clk 0:02:05]}  Qh4 {[%clk 0:02:16]} 21. Qf2 {[%clk 0:01:56]}  Qxf2 {[%clk 0:01:57]} 22. Bxf2 {[%clk 0:01:56]}  d5 {[%clk 0:01:50]} 23. Bd4 {[%clk 0:01:53]}  Bd6 {[%clk 0:01:49]} 24. b4 {[%clk 0:01:43]}  a6 {[%clk 0:01:44]} 25. b5 {[%clk 0:01:40]}  axb5 {[%clk 0:01:44]} 26. axb5 {[%clk 0:01:37]}  Nf6 {[%clk 0:01:34]} 27. Bb3 {[%clk 0:01:27]}  Ned7 {[%clk 0:01:29]} 28. bxc6 {[%clk 0:01:18]}  bxc6 {[%clk 0:01:28]} 29. Bf2 {[%clk 0:01:18]}  Rxe1+ {[%clk 0:01:22]} 30. Bxe1 {[%clk 0:01:12]}  Nc5 {[%clk 0:01:17]} 31. Bh4 {[%clk 0:00:59]}  Nxb3 {[%clk 0:01:04]} 32. cxb3 {[%clk 0:01:00]}  Be5 {[%clk 0:01:03]} 33. Na4 {[%clk 0:00:56]}  Nd7 {[%clk 0:00:48]} 34. Bf2 {[%clk 0:00:50]}  Rb8 {[%clk 0:00:44]} 35. Rd3 {[%clk 0:00:50]}  Kf8 {[%clk 0:00:39]} 36. g3 {[%clk 0:00:50]}  Ke7 {[%clk 0:00:39]} 37. f4 {[%clk 0:00:47]}  Bf6 {[%clk 0:00:38]} 38. Nc5 {[%clk 0:00:29]}  Nxc5 {[%clk 0:00:37]} 39. Bxc5+ {[%clk 0:00:29]}  Kd7 {[%clk 0:00:38]} 40. g4 {[%clk 0:00:27]}  Ra8 {[%clk 0:00:37]} 41. Kg2 {[%clk 0:00:26]}  Ra2+ {[%clk 0:00:34]} 42. Kg3 {[%clk 0:00:26]}  Rc2 {[%clk 0:00:32]} 43. Be3 {[%clk 0:00:21]}  Rc3 {[%clk 0:00:30]} 44. Rxc3 {[%clk 0:00:21]}  Bxc3 {[%clk 0:00:30]} 45. Kf3 {[%clk 0:00:20]}  Kd6 {[%clk 0:00:29]} 46. Ke2 {[%clk 0:00:20]}  d4 {[%clk 0:00:28]} 47. Bf2 {[%clk 0:00:18]}  Kd5 {[%clk 0:00:28]} 48. Kd3 {[%clk 0:00:19]}  c5 {[%clk 0:00:27]} 49. h4 {[%clk 0:00:19]}  Ba5 {[%clk 0:00:26]} 50. g5 {[%clk 0:00:19]}  h5 {[%clk 0:00:25]} 51. Bg3 {[%clk 0:00:12]}  f6 {[%clk 0:00:25]} 52. g6 {[%clk 0:00:11]}  Bc7 {[%clk 0:00:23]} 53. Bh2 {[%clk 0:00:11]}  Ba5 {[%clk 0:00:22]} 54. Bg1 {[%clk 0:00:11]}  Be1 {[%clk 0:00:21]} 55. Ke2 {[%clk 0:00:10]}  Bxh4 {[%clk 0:00:21]} 56. Kd3 {[%clk 0:00:11]}  Be1 {[%clk 0:00:20]} 57. Bh2 {[%clk 0:00:10]}  h4 {[%clk 0:00:19]} 58. Bg1 {[%clk 0:00:07]}  Bg3 {[%clk 0:00:18]} 59. Ke2 {[%clk 0:00:00]}  h3 {[%clk 0:00:17]} 0-1


[Site "https://www.chess.com"]

[Event "Titled Tuesday Blitz May 23 Early 2023"]
[White "lluiss"]
[Black "KorolDimitriy75"]
[WhiteElo "2254"]
[BlackElo "2430"]
[Result "1/2-1/2"]
[Round "08"]
[TimeControl "180+2"]
[Date "2023.05.23"]
[WhiteClock "0:00:10"]
[BlackClock "0:00:17"]

1. Nf3 {[%clk 0:03:00]}  c5 {[%clk 0:02:59]} 2. c4 {[%clk 0:02:59]}  g6 {[%clk 0:02:59]} 3. d4 {[%clk 0:02:58]}  cxd4 {[%clk 0:02:59]} 4. Nxd4 {[%clk 0:02:58]}  Bg7 {[%clk 0:02:59]} 5. e4 {[%clk 0:02:58]}  Nc6 {[%clk 0:02:59]} 6. Be3 {[%clk 0:02:58]}  Nf6 {[%clk 0:02:59]} 7. Nc3 {[%clk 0:02:56]}  O-O {[%clk 0:02:59]} 8. Be2 {[%clk 0:02:56]}  d6 {[%clk 0:02:59]} 9. O-O {[%clk 0:02:55]}  Bd7 {[%clk 0:02:59]} 10. f3 {[%clk 0:02:55]}  Nxd4 {[%clk 0:02:57]} 11. Bxd4 {[%clk 0:02:54]}  a5 {[%clk 0:02:58]} 12. Nd5 {[%clk 0:02:27]}  Nxd5 {[%clk 0:02:56]} 13. cxd5 {[%clk 0:02:27]}  a4 {[%clk 0:02:45]} 14. Bxg7 {[%clk 0:02:26]}  Kxg7 {[%clk 0:02:45]} 15. Qd4+ {[%clk 0:02:26]}  f6 {[%clk 0:02:42]} 16. Qb4 {[%clk 0:01:49]}  b5 {[%clk 0:02:30]} 17. Rfd1 {[%clk 0:01:44]}  Qb6+ {[%clk 0:02:25]} 18. Qd4 {[%clk 0:01:44]}  Qxd4+ {[%clk 0:01:57]} 19. Rxd4 {[%clk 0:01:43]}  Rfc8 {[%clk 0:01:58]} 20. Bd3 {[%clk 0:01:42]}  Rc5 {[%clk 0:01:38]} 21. Kf2 {[%clk 0:01:35]}  Rac8 {[%clk 0:01:09]} 22. Rb4 {[%clk 0:00:50]}  Kf7 {[%clk 0:01:04]} 23. Ke3 {[%clk 0:00:50]}  R8c7 {[%clk 0:00:35]} 24. a3 {[%clk 0:00:37]}  Rc8 {[%clk 0:00:34]} 25. b3 {[%clk 0:00:33]}  axb3 {[%clk 0:00:30]} 26. Rxb3 {[%clk 0:00:33]}  Ra8 {[%clk 0:00:27]} 27. Kd4 {[%clk 0:00:27]}  Ra4+ {[%clk 0:00:20]} 28. Rb4 {[%clk 0:00:22]}  Ra5 {[%clk 0:00:20]} 29. Ra2 {[%clk 0:00:16]}  h5 {[%clk 0:00:19]} 30. h4 {[%clk 0:00:14]}  Kf8 {[%clk 0:00:17]} 31. Rb3 {[%clk 0:00:09]}  Ra4+ {[%clk 0:00:16]} 32. Rb4 {[%clk 0:00:10]}  Ra5 {[%clk 0:00:17]} 33. Rb3 {[%clk 0:00:10]}  Ra4+ {[%clk 0:00:17]} 34. Rb4 {[%clk 0:00:10]}  Ra5 {[%clk 0:00:17]} 1/2-1/2


[Site "https://www.chess.com"]

[Event "Titled Tuesday Blitz May 23 Early 2023"]
[White "Vargas Rodriguez, Wilver"]
[Black "Dwilewicz, Katarzyna"]
[WhiteFideId "3509672"]
[BlackFideId "1148486"]
[WhiteElo "2246"]
[BlackElo "2065"]
[Result "0-1"]
[Round "08"]
[TimeControl "180+2"]
[Date "2023.05.23"]
[WhiteClock "0:00:00"]
[BlackClock "0:01:43"]

1. Nf3 {[%clk 0:03:00]}  b6 {[%clk 0:02:57]} 2. b3 {[%clk 0:02:59]}  Bb7 {[%clk 0:02:58]} 3. Bb2 {[%clk 0:02:59]}  Nf6 {[%clk 0:02:56]} 4. d3 {[%clk 0:02:53]}  d5 {[%clk 0:02:54]} 5. Nbd2 {[%clk 0:02:51]}  Nbd7 {[%clk 0:02:55]} 6. g3 {[%clk 0:02:49]}  e6 {[%clk 0:02:53]} 7. Bg2 {[%clk 0:02:49]}  Bd6 {[%clk 0:02:53]} 8. c4 {[%clk 0:02:39]}  O-O {[%clk 0:02:52]} 9. cxd5 {[%clk 0:02:39]}  exd5 {[%clk 0:02:50]} 10. O-O {[%clk 0:02:33]}  c5 {[%clk 0:02:51]} 11. a3 {[%clk 0:02:32]}  d4 {[%clk 0:02:50]} 12. Nc4 {[%clk 0:02:32]}  Bc7 {[%clk 0:02:49]} 13. a4 {[%clk 0:02:32]}  a6 {[%clk 0:02:46]} 14. e4 {[%clk 0:02:20]}  dxe3 {[%clk 0:02:37]} 15. fxe3 {[%clk 0:02:18]}  b5 {[%clk 0:02:35]} 16. Na3 {[%clk 0:02:16]}  Re8 {[%clk 0:02:26]} 17. e4 {[%clk 0:02:02]}  Bc6 {[%clk 0:02:23]} 18. Rc1 {[%clk 0:01:54]}  Ne5 {[%clk 0:02:16]} 19. Nxe5 {[%clk 0:01:53]}  Bxe5 {[%clk 0:02:15]} 20. Bxe5 {[%clk 0:01:36]}  Rxe5 {[%clk 0:02:15]} 21. h3 {[%clk 0:01:36]}  Qd4+ {[%clk 0:02:13]} 22. Kh2 {[%clk 0:01:33]}  Rd8 {[%clk 0:02:13]} 23. Rxf6 {[%clk 0:00:50]}  gxf6 {[%clk 0:02:12]} 24. axb5 {[%clk 0:00:31]}  axb5 {[%clk 0:02:11]} 25. Qg4+ {[%clk 0:00:07]}  Kh8 {[%clk 0:02:10]} 26. Qf3 {[%clk 0:00:05]}  Rg5 {[%clk 0:02:00]} 27. Nc2 {[%clk 0:00:03]}  Qe5 {[%clk 0:01:53]} 28. Rf1 {[%clk 0:00:00]}  Rg6 {[%clk 0:01:43]} 0-1


[Site "https://www.chess.com"]

[Event "Titled Tuesday Blitz May 23 Early 2023"]
[White "Sadubayev, Airat"]
[Black "Torres Dominguez, David"]
[WhiteFideId "13713264"]
[BlackFideId "2220857"]
[WhiteElo "2157"]
[BlackElo "1999"]
[Result "1/2-1/2"]
[Round "08"]
[TimeControl "180+2"]
[Date "2023.05.23"]
[WhiteClock "0:00:04"]
[BlackClock "0:00:06"]

1. d4 {[%clk 0:03:00]}  e5 {[%clk 0:02:59]} 2. dxe5 {[%clk 0:03:00]}  d6 {[%clk 0:02:59]} 3. exd6 {[%clk 0:02:59]}  Bxd6 {[%clk 0:03:00]} 4. Nf3 {[%clk 0:02:56]}  Bg4 {[%clk 0:03:00]} 5. Nc3 {[%clk 0:02:48]}  Nc6 {[%clk 0:02:59]} 6. Bg5 {[%clk 0:02:33]}  f6 {[%clk 0:02:59]} 7. Bh4 {[%clk 0:02:30]}  Qe7 {[%clk 0:02:59]} 8. e3 {[%clk 0:02:28]}  O-O-O {[%clk 0:02:59]} 9. Bd3 {[%clk 0:02:24]}  Ne5 {[%clk 0:02:51]} 10. Nd5 {[%clk 0:02:15]}  Qf7 {[%clk 0:02:35]} 11. e4 {[%clk 0:01:54]}  Qh5 {[%clk 0:01:51]} 12. Nf4 {[%clk 0:01:09]}  Nxf3+ {[%clk 0:01:46]} 13. gxf3 {[%clk 0:01:06]}  Bxf4 {[%clk 0:01:37]} 14. fxg4 {[%clk 0:01:02]}  Qxh4 {[%clk 0:01:37]} 15. Qf3 {[%clk 0:01:01]}  Qg5 {[%clk 0:01:35]} 16. h4 {[%clk 0:01:00]}  Qe5 {[%clk 0:01:35]} 17. O-O {[%clk 0:00:56]}  h5 {[%clk 0:01:32]} 18. Rad1 {[%clk 0:00:53]}  hxg4 {[%clk 0:01:27]} 19. Qxg4+ {[%clk 0:00:52]}  f5 {[%clk 0:01:15]} 20. exf5 {[%clk 0:00:49]}  Nf6 {[%clk 0:01:16]} 21. Qf3 {[%clk 0:00:43]}  Rxd3 {[%clk 0:00:32]} 22. Qxd3 {[%clk 0:00:32]}  c6 {[%clk 0:00:18]} 23. Rfe1 {[%clk 0:00:27]}  Qc7 {[%clk 0:00:18]} 24. Qe2 {[%clk 0:00:17]}  Bh2+ {[%clk 0:00:18]} 25. Kg2 {[%clk 0:00:15]}  Bd6 {[%clk 0:00:17]} 26. Qe6+ {[%clk 0:00:15]}  Qd7 {[%clk 0:00:16]} 27. Qxd6 {[%clk 0:00:14]}  Qxd6 {[%clk 0:00:15]} 28. Rxd6 {[%clk 0:00:14]}  Rxh4 {[%clk 0:00:13]} 29. Rde6 {[%clk 0:00:13]}  Rg4+ {[%clk 0:00:10]} 30. Kf3 {[%clk 0:00:13]}  Rg5 {[%clk 0:00:10]} 31. R6e5 {[%clk 0:00:10]}  Kc7 {[%clk 0:00:09]} 32. Re7+ {[%clk 0:00:09]}  Kb6 {[%clk 0:00:08]} 33. R7e5 {[%clk 0:00:08]}  Nd7 {[%clk 0:00:05]} 34. Re7 {[%clk 0:00:05]}  Nf6 {[%clk 0:00:06]} 35. Kf4 {[%clk 0:00:04]}  Rg4+ {[%clk 0:00:06]} 36. Kf3 {[%clk 0:00:04]}  Rg5 {[%clk 0:00:06]} 1/2-1/2


[Site "https://www.chess.com"]